fUSD/lending_fUSD_20251031
["ID","MTS","AMOUNT","RATE_DAILY","PERIOD"]
[392724665,1761868911390,436.8,0.00014,7]
[392724666,1761869005782,1659.32,0.00014121,2]
[392724667,1761869113671,219.84184472,0.00013488,2]
[392724668,1761869116264,666.0,0.00014117,3]
[392724669,1761869186474,3237.22,0.00014076,2]
[392724672,1761869299412,500.0,0.00014087,2]
[392724673,1761869299432,695.85,0.00014087,2]
[392724674,1761869345042,354.01,0.000141,2]
[392724675,1761869359084,163.9,7.05e-05,2]
[392724676,1761869359339,163.9,7.833e-05,2]
[392724677,1761869359558,163.9,8.617e-05,2]
[392724678,1761869359798,163.9,9.4e-05,2]
[392724679,1761869360034,163.9,0.00010183,2]
[392724680,1761869360242,163.9,0.00010966,2]
[392724681,1761869360495,163.9,0.0001175,2]
[392724682,1761869360711,163.9,0.00012533,2]
[392724683,1761869360923,163.9,0.00013316,2]
[392724684,1761869361148,163.9,0.000141,2]
[392724686,1761869432212,-413.8620027,0.00014212,2]
[392724687,1761869432224,-786.1379973,0.00014212,2]
[392724688,1761869432237,-1200.0,0.00014212,2]
[392724689,1761869432246,-300.0,0.00014212,2]
[392724690,1761869432256,-300.0,0.00014212,2]
[392724691,1761869432265,-189.06781646,0.00014213,2]
[392724692,1761869432275,-223.79418624,0.00014213,2]
[392724693,1761869432301,-271.09,0.00014213,2]
[392724704,1761869438355,-2375.25971722,0.00014213,2]
[392724764,1761869440302,-1088.99137583,0.00014213,2]
[392724765,1761869440315,-13719.39472071,0.00014213,2]
[392724766,1761869440325,-152.0,0.0001473,2]
[392724767,1761869440334,-152.0,0.0001473,2]
[392724768,1761869440343,-152.0,0.0001473,2]
[392724769,1761869440352,-291.06529705,0.0001473,2]
[392724770,1761869440362,-257.37,0.000148,2]
[392724771,1761869440371,-150.0,0.00014899,2]
[392724772,1761869440381,-485.55784356,0.000149,2]
[392724773,1761869440390,-2500.0,0.000149,2]
[392724774,1761869440399,-154.44619155,0.000149,2]
[392724775,1761869440408,-2263.1120072,0.000149,2]
[392724776,1761869440417,-369.47914269,0.000149,2]
[392724777,1761869440426,-271.93429098,0.000149,2]
[392724778,1761869440436,-263.78839044,0.000149,2]
[392724779,1761869440446,-199.03635234,0.000149,2]
[392724780,1761869440455,-150.0,0.00014947,2]
[392724781,1761869440465,-1579.19823,0.0001497,2]
[392724782,1761869440474,-504.87647403,0.00014973,2]
[392724783,1761869440483,-500.0,0.00014973,2]
[392724784,1761869440492,-1956.4,0.00014973,2]
[392724785,1761869440502,-8968.18,0.00014973,2]
[392724786,1761869440511,-643.8005641,0.00014973,2]
[392724787,1761869440520,-1816.022,0.00014991,2]
[392724788,1761869440530,-210.921,0.00014991,2]
[392724789,1761869440539,-574.12855637,0.00014991,2]
[392724790,1761869440548,-399.61734405,0.00014998,2]
[392724791,1761869440558,-161.3866578,0.00014999,2]
[392724792,1761869440567,-21313.6998234,0.00014999,2]
[392724793,1761869440576,-12833.0689844,0.00014999,2]
[392724794,1761869440585,-155.0,0.00014999,2]
[392724795,1761869440595,-3084.0928117,0.00014999,2]
[392724796,1761869440604,-1040.0,0.00015,2]
[392724797,1761869440613,-1430173.79097327,0.00015,2]
[392724798,1761869440664,-1130.9,0.00015,2]
[392724849,1761869446308,-477.51993212,0.00015,2]
[392724850,1761869446320,-3289.51675797,0.00015,2]
[392724851,1761869446375,-125269.92162136,0.00015,2]
[392724852,1761869446565,-10871.4830027,0.00015,2]
[392724890,1761869798258,250.0,0.00014139,2]
[392724893,1761869857324,1000.0,0.00014144,2]
[392724897,1761870320248,10920.21493779,0.00014115,2]
[392724915,1761870632417,-200.0,0.00014062,2]
[392724916,1761870632426,-200.0,0.00014073,2]
[392724917,1761870632436,-3567.1648815,0.00014115,2]
[392724918,1761870632529,-254.41018071,0.00014115,2]
[392724919,1761870632540,-250.0,0.00014275,2]
[392724920,1761870632550,-150.0,0.00014433,2]
[392724921,1761870632559,-251.0,0.00014454,2]
[392724922,1761870632568,-500.0,0.0001463,2]
[392724923,1761870632578,-492.03767927,0.00014647,2]
[392724924,1761870632598,-707.96232073,0.00014647,2]
[392724925,1761870632608,-300.0,0.00014647,2]
[392724926,1761870632617,-1238.0,0.00014648,2]
[392724927,1761870632627,-1238.0,0.00014648,2]
[392724928,1761870632636,-152.0,0.00014648,2]
[392724929,1761870632646,-1238.0,0.00014648,2]
[392724930,1761870632655,-299.69683766,0.00014648,2]
[392724931,1761870632664,-1238.0,0.00014648,2]
[392724932,1761870632674,-174.0,0.00014828,2]
[392724933,1761870632685,-500.0,0.00014873,2]
[392724934,1761870632695,-399.61734405,0.00014899,2]
[392724936,1761870632704,-150.0,0.00014899,2]
[392724938,1761870632714,-2500.0,0.000149,2]
[392724940,1761870632723,-416.19243732,0.000149,2]
[392724942,1761870632732,-71637.60717371,0.000149,2]
[392724944,1761870632742,-156.12868206,0.000149,2]
[392724946,1761870632752,-2586.35399862,0.000149,2]
[392724948,1761870632761,-527.57678084,0.000149,2]
[392724950,1761870632771,-1508.74133812,0.000149,2]
[392724952,1761870632780,-181.28952732,0.000149,2]
[392724954,1761870632790,-500.0,0.00014973,2]
[392724955,1761870632800,-500.0,0.00014973,2]
[392724956,1761870632809,-500.0,0.00014973,2]
[392724958,1761870632818,-500.0,0.00014973,2]
[392724959,1761870632828,-500.0,0.00014973,2]
[392724960,1761870632837,-500.0,0.00014973,2]
[392724961,1761870632847,-357.95006839,0.00014973,2]
[392724962,1761870632856,-500.0,0.00014973,2]
[392724963,1761870632866,-500.0,0.00014973,2]
[392724964,1761870632876,-205.68285876,0.00014973,2]
[392724965,1761870632885,-500.0,0.00014973,2]
[392724966,1761870632894,-500.0,0.00014973,2]
[392724967,1761870632904,-500.0,0.00014973,2]
[392724968,1761870632913,-500.0,0.00014973,2]
[392724969,1761870632923,-501.84277717,0.00014973,2]
[392724970,1761870632932,-500.0,0.00014973,2]
[392724971,1761870632941,-500.0,0.00014973,2]
[392724972,1761870632951,-500.0,0.00014973,2]
[392724973,1761870632960,-500.0,0.00014973,2]
[392724974,1761870632970,-1452.818,0.00014988,2]
[392724975,1761870632979,-12504.4751061,0.00014989,2]
[392724976,1761870632989,-161.3866578,0.00014989,2]
[392724977,1761870632998,-16743.9793774,0.00014989,2]
[392724978,1761870633007,-4569.7204459,0.00014989,2]
[392724979,1761870633017,-6166.647832,0.00014989,2]
[392724980,1761870633026,-500.0,0.00014991,2]
[392724981,1761870633036,-500.0,0.00014991,2]
[392724982,1761870633045,-500.0,0.00014991,2]
[392724983,1761870633054,-200.0,0.00014991,2]
[392724984,1761870633064,-500.0,0.00014991,2]
[392724985,1761870633073,-500.0,0.00014991,2]
[392724986,1761870633083,-208.75050563,0.00014991,2]
[392724987,1761870633093,-200.0,0.00014991,2]
[392724988,1761870633103,-200.0,0.00014991,2]
[392724989,1761870633112,-574.12855637,0.00014991,2]
[392724990,1761870633122,-155.0,0.00014999,2]
[392724991,1761870633132,-409.17,0.00014999,2]
[392724992,1761870633141,-153.50114406,0.00014999,2]
[392724993,1761870633152,-556.63917551,0.00014999,2]
[392724994,1761870633162,-839.0,0.00015,2]
[392724995,1761870633171,-10233.33071569,0.00015,2]
[392724996,1761870633184,-1559.40505311,0.00015,2]
[392725000,1761870638273,-8483.3633041,0.00014941,2]
[392725001,1761870638283,-208956.6366959,0.00015,2]
[392725002,1761870638478,-1132.52231204,0.00015,2]
[392725007,1761870640449,-520160.82685463,0.00015,2]
[392725008,1761870640459,-162.64757505,0.00015,2]
[392725009,1761870640468,-948837.18216494,0.00015,2]
[392725033,1761870643656,-872.65096678,0.00015,2]
[392725046,1761870646382,-10489.96359625,0.00015,2]
[392725047,1761870646437,-617.3775859,0.00015,2]
[392725048,1761870646448,-5480.4774486,0.00015,2]
[392725052,1761870851659,-378.37469044,0.00013699,2]
[392725056,1761871221697,221.14728307,0.00030137,120]
[392725058,1761871282155,160.0,0.000315,120]
[392725059,1761871285715,160.0,0.000315,120]
[392725060,1761871311395,160.0,0.000315,120]
[392725061,1761871336529,2000.0,0.000105,2]
[392725064,1761871548394,5888.0,0.000165,3]
[392725065,1761871552218,5888.0,0.000165,3]
[392725066,1761871555585,3948.47977742,0.000165,3]
[392725067,1761871591396,2000.0,0.000315,120]
[392725068,1761871593087,2000.0,0.000315,120]
[392725069,1761871595043,2000.0,0.000315,120]
[392725070,1761871608236,2000.0,0.000315,120]
[392725071,1761871609698,2000.0,0.000315,120]
[392725072,1761871623840,2000.0,0.000315,120]
[392725073,1761871754095,4910.0,0.000165,3]
[392725075,1761871831472,-169.67530956,0.00013699,2]
[392725076,1761871831481,-610.0,0.00014064,2]
[392725077,1761871831491,-252.55,0.00014175,2]
[392725078,1761871831500,-28.35072275,0.00014392,2]
[392725079,1761871831523,-751.38243869,0.00014392,2]
[392725080,1761871831532,-1.18172633,0.00014392,2]
[392725081,1761871831578,-150.81827367,0.00014392,2]
[392725082,1761871831588,-152.0,0.00014463,2]
[392725083,1761871831597,-152.0,0.00014463,2]
[392725084,1761871831608,-152.0,0.00014463,2]
[392725085,1761871831617,-152.0,0.00014463,2]
[392725086,1761871831626,-152.0,0.00014463,2]
[392725087,1761871831635,-152.0,0.00014463,2]
[392725088,1761871831644,-152.0,0.00014463,2]
[392725089,1761871831654,-152.0,0.00014463,2]
[392725090,1761871831663,-152.0,0.00014463,2]
[392725091,1761871831672,-290.87653256,0.00014463,2]
[392725092,1761871831682,-500.0,0.00014493,2]
[392725093,1761871831691,-500.0,0.0001463,2]
[392725094,1761871831700,-166.39,0.00014635,2]
[392725095,1761871831711,-1200.0,0.00014899,2]
[392725096,1761871831723,-300.0,0.00014899,2]
[392725097,1761871831732,-5630.5435426,0.000149,2]
[392725098,1761871831742,-156.12868203,0.000149,2]
[392725099,1761871831753,-181.28952731,0.000149,2]
[392725100,1761871831762,-356.73637482,0.000149,2]
[392725101,1761871831771,-500.0,0.00014959,2]
[392725102,1761871831780,-252.55,0.00014962,2]
[392725103,1761871831790,-500.0,0.00014973,2]
[392725105,1761871831799,-500.0,0.00014973,2]
[392725107,1761871831808,-500.0,0.00014973,2]
[392725109,1761871831818,-224.1246753,0.0001499,2]
[392725111,1761871831828,-245.27042517,0.00014991,2]
[392725113,1761871831838,-574.12855637,0.00014991,2]
[392725115,1761871831847,-150.0,0.00014998,2]
[392725117,1761871831858,-3336.2628727,0.00014999,2]
[392725119,1761871831867,-153.5479397,0.00014999,2]
[392725121,1761871831875,-159.81400927,0.00014999,2]
[392725123,1761871831884,-500.0,0.00014999,2]
[392725125,1761871831895,-500.0,0.00014999,2]
[392725127,1761871831904,-500.0,0.00014999,2]
[392725129,1761871831913,-540.22783081,0.00014999,2]
[392725131,1761871831923,-613.24,0.00014999,2]
[392725133,1761871831933,-613.24,0.00014999,2]
[392725135,1761871831942,-613.24,0.00014999,2]
[392725137,1761871831951,-613.24,0.00014999,2]
[392725139,1761871831961,-613.24,0.00014999,2]
[392725141,1761871831970,-613.24,0.00014999,2]
[392725143,1761871831979,-613.24,0.00014999,2]
[392725145,1761871831988,-613.24,0.00014999,2]
[392725147,1761871831998,-613.24,0.00014999,2]
[392725149,1761871832007,-613.24,0.00014999,2]
[392725151,1761871832016,-613.24,0.00014999,2]
[392725152,1761871832025,-613.24,0.00014999,2]
[392725154,1761871832035,-613.24,0.00014999,2]
[392725156,1761871832044,-613.24,0.00014999,2]
[392725158,1761871832053,-613.24,0.00014999,2]
[392725161,1761871832063,-613.24,0.00014999,2]
[392725162,1761871832072,-613.24,0.00014999,2]
[392725165,1761871832082,-613.24,0.00014999,2]
[392725167,1761871832091,-613.24,0.00014999,2]
[392725169,1761871832100,-613.24,0.00014999,2]
[392725170,1761871832110,-613.24,0.00014999,2]
[392725172,1761871832119,-613.24,0.00014999,2]
[392725174,1761871832128,-613.24,0.00014999,2]
[392725176,1761871832137,-613.29840689,0.00014999,2]
[392725178,1761871832147,-6270.9553749,0.00014999,2]
[392725180,1761871832156,-1292.0,0.00015,2]
[392725182,1761871832165,-11056.60199013,0.00015,2]
[392725185,1761871832178,-19060.77539836,0.00015,2]
[392725220,1761871832481,-712.17874627,0.00015,2]
[392725222,1761871832492,-633.49960292,0.00015,2]
[392725224,1761871832503,-676.838,0.00015,2]
[392725227,1761871832522,-3926.96533865,0.00015,2]
[392725229,1761871832534,-29140.13201316,0.00015,2]
[392725230,1761871832545,-829.15081939,0.00015,2]
[392725246,1761871837452,-675084.28673815,0.00015,2]
[392725247,1761871837461,-252052.06227794,0.00015,2]
[392725248,1761871837470,-3135358.96180914,0.00015,2]
[392725249,1761871837504,-1459.4595932,0.00015,2]
[392725250,1761871837558,-138565.28773584,0.00015,2]
[392725251,1761871837614,-305.96311241,0.00015,2]
[392725252,1761871837669,-1116.4006777,0.00015,2]
[392725253,1761871837680,-426.44784071,0.00015,2]
[392725441,1761871839502,-425.61492428,0.00014999,2]
[392725443,1761871839512,-1575.86580505,0.00015,2]
[392725445,1761871839523,-1780.23746608,0.00015,2]
[392725450,1761871839557,-436.43739978,0.00015,2]
[392725452,1761871839568,-1087.1,0.00015,2]
[392725475,1761871839822,-1480960.01642543,0.00015,2]
[392725798,1761871842643,-808.163,0.00014988,2]
[392725801,1761871842653,-1421.44554926,0.00015,2]
[392726143,1761871845624,-1005.82755876,0.000149,2]
[392726145,1761871845635,-4443.17244124,0.00015,2]
[392726150,1761871845677,-2252.82159897,0.00015,2]
[392726162,1761871845785,-479.58569639,0.00015,2]
[392726164,1761871845797,-4110.41870686,0.00015,2]
[392726834,1761871953253,631.0,0.000165,3]
[392726837,1761872713761,150.0,0.00013488,2]
[392726838,1761872713829,150.0,0.00013488,2]
[392726839,1761872717272,150.0,0.00013488,2]
[392726840,1761872720670,150.0,0.00013488,2]
[392726841,1761872732976,150.0,0.00013488,2]
[392726842,1761872734433,150.0,0.00013488,2]
[392726844,1761872937568,666.0,0.00014054,3]
[392726854,1761873031898,-377.0245231,0.00014054,2]
[392726855,1761873031947,-609.0054769,0.00014054,2]
[392726856,1761873031956,-250.0,0.00014131,2]
[392726857,1761873031965,-250.0,0.0001414,2]
[392726858,1761873031975,-1000.0,0.0001415,2]
[392726859,1761873031984,-330.4,0.00014159,2]
[392726860,1761873031993,-300.0,0.00014255,2]
[392726861,1761873032003,-1200.0,0.00014255,2]
[392726862,1761873032012,-9577.58475101,0.00014256,2]
[392726863,1761873032053,-4518.79560993,0.00014256,2]
[392726904,1761873037580,-5110.67963906,0.00014256,2]
[392726905,1761873037589,-176.76,0.00014257,2]
[392726906,1761873037599,-824.0,0.00014486,2]
[392726907,1761873037609,-150.0,0.00014535,2]
[392726908,1761873037618,-152.0,0.00014536,2]
[392726909,1761873037627,-152.0,0.00014536,2]
[392726910,1761873037636,-152.0,0.00014536,2]
[392726911,1761873037645,-152.0,0.00014536,2]
[392726912,1761873037654,-824.0,0.00014536,2]
[392726913,1761873037663,-152.0,0.00014536,2]
[392726914,1761873037672,-824.0,0.00014536,2]
[392726915,1761873037682,-152.0,0.00014536,2]
[392726916,1761873037691,-824.0,0.00014536,2]
[392726917,1761873037700,-152.0,0.00014536,2]
[392726918,1761873037709,-824.0,0.00014536,2]
[392726919,1761873037718,-152.0,0.00014536,2]
[392726920,1761873037727,-824.0,0.00014536,2]
[392726921,1761873037736,-152.0,0.00014536,2]
[392726922,1761873037744,-824.0,0.00014536,2]
[392726923,1761873037753,-152.0,0.00014536,2]
[392726924,1761873037762,-824.0,0.00014536,2]
[392726925,1761873037771,-152.0,0.00014536,2]
[392726926,1761873037780,-824.0,0.00014536,2]
[392726927,1761873037790,-152.0,0.00014536,2]
[392726928,1761873037799,-826.77346509,0.00014536,2]
[392726929,1761873037808,-211.55920078,0.00014536,2]
[392726930,1761873037818,-152.0,0.00014536,2]
[392726931,1761873037827,-152.0,0.00014536,2]
[392726932,1761873037836,-152.0,0.00014536,2]
[392726933,1761873037846,-152.0,0.00014536,2]
[392726934,1761873037856,-152.0,0.00014536,2]
[392726935,1761873037865,-152.0,0.00014536,2]
[392726936,1761873037874,-838.76,0.00014536,2]
[392726937,1761873037884,-838.76,0.0001481,2]
[392726938,1761873037893,-206.0,0.00014849,2]
[392726939,1761873037903,-1387.09068,0.0001485,2]
[392726940,1761873037912,-161.35059604,0.000149,2]
[392726941,1761873037921,-164.09210658,0.000149,2]
[392726942,1761873037930,-159.01753016,0.000149,2]
[392726943,1761873037940,-500.0,0.00014972,2]
[392726944,1761873037949,-261.34956791,0.00014972,2]
[392726945,1761873037958,-398.04116459,0.00014972,2]
[392726947,1761873037967,-500.0,0.00014972,2]
[392726949,1761873037976,-500.0,0.00014972,2]
[392726950,1761873037985,-500.0,0.00014972,2]
[392726952,1761873037994,-500.0,0.00014972,2]
[392726954,1761873038003,-500.0,0.00014972,2]
[392726956,1761873038013,-500.0,0.00014972,2]
[392726958,1761873038022,-500.0,0.00014972,2]
[392726960,1761873038031,-500.0,0.00014972,2]
[392726962,1761873038041,-500.0,0.00014972,2]
[392726964,1761873038051,-500.0,0.00014972,2]
[392726966,1761873038060,-500.0,0.00014972,2]
[392726968,1761873038070,-483.00091754,0.00014972,2]
[392726970,1761873038080,-500.0,0.00014972,2]
[392726972,1761873038089,-500.0,0.00014972,2]
[392726974,1761873038098,-500.0,0.00014972,2]
[392726976,1761873038107,-500.0,0.00014972,2]
[392726978,1761873038118,-500.0,0.00014972,2]
[392726980,1761873038127,-500.0,0.00014972,2]
[392726982,1761873038137,-500.0,0.00014972,2]
[392726984,1761873038146,-500.0,0.00014973,2]
[392726986,1761873038155,-500.0,0.00014973,2]
[392726988,1761873038164,-164.26772994,0.00014973,2]
[392726990,1761873038175,-563.342996,0.00014973,2]
[392726993,1761873038185,-500.0,0.00014973,2]
[392726994,1761873038195,-500.0,0.00014973,2]
[392726997,1761873038204,-500.0,0.00014973,2]
[392726999,1761873038213,-500.0,0.00014973,2]
[392727001,1761873038223,-445.86977539,0.00014973,2]
[392727003,1761873038232,-500.0,0.00014973,2]
[392727005,1761873038241,-510.94471259,0.00014973,2]
[392727007,1761873038251,-1385.772,0.0001499,2]
[392727009,1761873038260,-1117.16435527,0.0001499,2]
[392727011,1761873038269,-1117.16435527,0.0001499,2]
[392727013,1761873038279,-200.0,0.00014991,2]
[392727015,1761873038289,-150.0,0.00014991,2]
[392727017,1761873038299,-150.0,0.00014991,2]
[392727018,1761873038308,-150.0,0.00014991,2]
[392727020,1761873038317,-152.45989244,0.00014991,2]
[392727022,1761873038326,-150.0,0.00014991,2]
[392727024,1761873038335,-150.0,0.00014991,2]
[392727026,1761873038344,-150.0,0.00014991,2]
[392727028,1761873038354,-150.0,0.00014991,2]
[392727030,1761873038363,-150.0,0.00014991,2]
[392727032,1761873038372,-193.81586442,0.00014991,2]
[392727034,1761873038382,-212.93440763,0.00014991,2]
[392727036,1761873038391,-500.0,0.00014991,2]
[392727038,1761873038400,-151.0,0.00014991,2]
[392727040,1761873038410,-151.0,0.00014991,2]
[392727042,1761873038419,-151.0,0.00014991,2]
[392727044,1761873038428,-151.0,0.00014991,2]
[392727046,1761873038437,-151.0,0.00014991,2]
[392727048,1761873038447,-151.0,0.00014991,2]
[392727050,1761873038456,-151.0,0.00014991,2]
[392727052,1761873038465,-151.0,0.00014991,2]
[392727080,1761873038749,-151.0,0.00014991,2]
[392727081,1761873038759,-151.0,0.00014991,2]
[392727082,1761873038770,-170.13932674,0.00014991,2]
[392727083,1761873038780,-151.0,0.00014991,2]
[392727084,1761873038789,-151.0,0.00014991,2]
[392727085,1761873038798,-151.0,0.00014991,2]
[392727086,1761873038808,-151.0,0.00014991,2]
[392727087,1761873038817,-151.0,0.00014991,2]
[392727088,1761873038826,-151.0,0.00014991,2]
[392727089,1761873038836,-151.0,0.00014991,2]
[392727090,1761873038845,-151.0,0.00014991,2]
[392727091,1761873038854,-500.0,0.00014991,2]
[392727092,1761873038863,-151.0,0.00014991,2]
[392727093,1761873038874,-151.0,0.00014991,2]
[392727094,1761873038883,-151.0,0.00014991,2]
[392727095,1761873038893,-151.0,0.00014991,2]
[392727096,1761873038903,-151.0,0.00014991,2]
[392727097,1761873038915,-151.0,0.00014991,2]
[392727098,1761873038925,-574.12855637,0.00014991,2]
[392727099,1761873038934,-151.0,0.00014991,2]
[392727100,1761873038943,-151.0,0.00014991,2]
[392727101,1761873038953,-150.0,0.00014991,2]
[392727102,1761873038962,-200.0,0.00014991,2]
[392727103,1761873038971,-150.0,0.00014991,2]
[392727104,1761873038980,-500.0,0.00014991,2]
[392727105,1761873038989,-500.0,0.00014991,2]
[392727106,1761873038999,-3371.8770663,0.00014997,2]
[392727107,1761873039009,-219.32060733,0.00014999,2]
[392727108,1761873039019,-150.36784563,0.00014999,2]
[392727109,1761873039029,-150.0,0.00014999,2]
[392727110,1761873039039,-150.0,0.00014999,2]
[392727111,1761873039048,-150.0,0.00014999,2]
[392727112,1761873039057,-150.0,0.00014999,2]
[392727113,1761873039067,-150.0,0.00014999,2]
[392727114,1761873039077,-500.0,0.00014999,2]
[392727115,1761873039086,-150.0,0.00014999,2]
[392727116,1761873039095,-150.0,0.00014999,2]
[392727117,1761873039104,-500.0,0.00014999,2]
[392727118,1761873039114,-500.0,0.00014999,2]
[392727119,1761873039124,-500.0,0.00014999,2]
[392727120,1761873039134,-500.0,0.00014999,2]
[392727121,1761873039143,-500.0,0.00014999,2]
[392727122,1761873039153,-500.0,0.00014999,2]
[392727123,1761873039165,-500.0,0.00014999,2]
[392727124,1761873039175,-163.31,0.00014999,2]
[392727125,1761873039184,-666.0,0.00014999,2]
[392727126,1761873039193,-976.0,0.00015,2]
[392727127,1761873039202,-1095366.15750679,0.00015,2]
[392727128,1761873039212,-2721032.54867936,0.00015,2]
[392727129,1761873039222,-228.46324647,0.00015,2]
[392727130,1761873039232,-162.64757505,0.00015,2]
[392727131,1761873039241,-1238.0,0.00015,2]
[392727132,1761873039251,-1238.0,0.00015,2]
[392727133,1761873039260,-52284.0826426,0.00015,2]
[392727134,1761873039269,-774.6405839,0.00015,2]
[392727135,1761873039279,-178.8166669,0.00015,2]
[392727136,1761873039289,-150.0,0.00015,2]
[392727137,1761873039299,-593.57895976,0.00015,2]
[392727138,1761873039308,-1682.9844355,0.00015,2]
[392727139,1761873039319,-1000.0,0.00015,2]
[392727140,1761873039328,-539.97010201,0.00015,2]
[392727141,1761873039338,-2315.2560014,0.00015,2]
[392727142,1761873039347,-6166.6478318,0.00015,2]
[392727143,1761873039356,-166.1027478,0.00015,2]
[392727144,1761873039366,-151.0,0.00015045,2]
[392727145,1761873039376,-151.0,0.00015046,2]
[392727146,1761873039385,-151.0,0.00015047,2]
[392727147,1761873039395,-151.0,0.00015048,2]
[392727148,1761873039404,-838.76,0.00015084,2]
[392727149,1761873039413,-166.39,0.00015119,2]
[392727150,1761873039423,-297.16050448,0.00015128,2]
[392727151,1761873039432,-252.40640861,0.00015128,2]
[392727152,1761873039441,-150.0,0.00015128,2]
[392727153,1761873039450,-150.0,0.00015128,2]
[392727154,1761873039459,-150.0,0.00015128,2]
[392727155,1761873039469,-150.0,0.00015128,2]
[392727156,1761873039479,-150.0,0.00015128,2]
[392727157,1761873039488,-500.0,0.00015128,2]
[392727158,1761873039499,-150.0,0.00015128,2]
[392727159,1761873039508,-500.0,0.00015128,2]
[392727160,1761873039518,-500.0,0.00015128,2]
[392727161,1761873039528,-150.0,0.00015136,2]
[392727162,1761873039540,-150.0,0.00015136,2]
[392727163,1761873039549,-150.0,0.00015136,2]
[392727164,1761873039559,-150.0,0.00015136,2]
[392727165,1761873039568,-32751.27447501,0.00015174,2]
[392727166,1761873039578,-1039.86,0.00015233,2]
[392727167,1761873039588,-174.0,0.00015238,2]
[392727168,1761873039597,-150.0,0.00015265,2]
[392727169,1761873039607,-150.0,0.00015265,2]
[392727170,1761873039618,-200.0,0.00015265,2]
[392727171,1761873039627,-200.0,0.00015265,2]
[392727172,1761873039637,-150.0,0.00015265,2]
[392727173,1761873039646,-500.0,0.00015265,2]
[392727174,1761873039656,-168.04759998,0.00015265,2]
[392727175,1761873039666,-256.18831676,0.00015265,2]
[392727176,1761873039675,-500.0,0.00015265,2]
[392727177,1761873039684,-200.0,0.00015273,2]
[392727179,1761873039693,-200.0,0.00015273,2]
[392727180,1761873039703,-150.0,0.00015273,2]
[392727181,1761873039712,-150.0,0.00015273,2]
[392727182,1761873039721,-1517.64,0.000153,2]
[392727183,1761873039730,-493.63,0.00015342,2]
[392727184,1761873039739,-838.76,0.00015358,2]
[392727185,1761873039749,-174.0,0.00015398,2]
[392727186,1761873039758,-1733.78314161,0.000154,2]
[392727187,1761873039767,-502.61801152,0.000154,2]
[392727188,1761873039776,-150.0,0.00015402,2]
[392727189,1761873039785,-150.0,0.00015402,2]
[392727190,1761873039794,-176.78281762,0.00015402,2]
[392727191,1761873039803,-500.0,0.00015402,2]
[392727192,1761873039813,-500.0,0.00015402,2]
[392727193,1761873039822,-300.0,0.00015404,2]
[392727194,1761873039831,-150.0,0.0001541,2]
[392727195,1761873039840,-150.0,0.0001541,2]
[392727196,1761873039849,-174.0,0.00015421,2]
[392727197,1761873039858,-500.0,0.00015425,2]
[392727198,1761873039868,-1000.0,0.00015521,2]
[392727199,1761873039877,-500.0,0.00015521,2]
[392727200,1761873039886,-254.44010568,0.00015539,2]
[392727201,1761873039895,-150.0,0.00015539,2]
[392727202,1761873039904,-500.0,0.00015539,2]
[392727203,1761873039913,-208.62212778,0.00015539,2]